fUSD/lending_fUSD_20260313
["ID","MTS","AMOUNT","RATE_DAILY","PERIOD"]
[408312047,1773390636392,-500.0,0.00019973,2]
[408312048,1773390636402,-500.0,0.00019973,2]
[408312049,1773390636411,-500.0,0.00019973,2]
[408312050,1773390636420,-500.0,0.00019973,2]
[408312051,1773390636430,-500.0,0.00019973,2]
[408312052,1773390636440,-500.0,0.00019973,2]
[408312053,1773390636449,-363.75794181,0.0001999,2]
[408312054,1773390636459,-363.75794181,0.0001999,2]
[408312055,1773390636469,-363.75794181,0.0001999,2]
[408312056,1773390636479,-310.34047913,0.00019999,2]
[408312057,1773390636489,-300.0,0.00019999,2]
[408312058,1773390636498,-672.34663762,0.00019999,2]
[408312059,1773390636508,-300.0,0.00019999,2]
[408312060,1773390636518,-672.07190369,0.00019999,2]
[408312061,1773390636528,-165.644,0.00019999,2]
[408312062,1773390636537,-500.0,0.00019999,2]
[408312063,1773390636548,-500.0,0.00019999,2]
[408312064,1773390636558,-314.42910771,0.00019999,2]
[408312065,1773390636567,-500.0,0.00019999,2]
[408312066,1773390636576,-500.0,0.00019999,2]
[408312067,1773390636586,-500.0,0.00019999,2]
[408312068,1773390636595,-500.0,0.00019999,2]
[408312069,1773390636605,-255.96292911,0.00019999,2]
[408312070,1773390636615,-500.0,0.00019999,2]
[408312071,1773390636625,-500.0,0.00019999,2]
[408312072,1773390636635,-500.0,0.00019999,2]
[408312073,1773390636644,-500.0,0.00019999,2]
[408312074,1773390636654,-184.77383357,0.00019999,2]
[408312075,1773390636663,-500.0,0.00019999,2]
[408312076,1773390636673,-500.0,0.00019999,2]
[408312077,1773390636684,-500.0,0.00019999,2]
[408312078,1773390636698,-500.0,0.00019999,2]
[408312079,1773390636708,-500.0,0.00019999,2]
[408312080,1773390636718,-500.0,0.00019999,2]
[408312081,1773390636730,-500.0,0.00019999,2]
[408312082,1773390636742,-500.0,0.00019999,2]
[408312083,1773390636752,-500.0,0.00019999,2]
[408312084,1773390636762,-500.0,0.00019999,2]
[408312085,1773390636771,-500.0,0.00019999,2]
[408312086,1773390636780,-500.0,0.00019999,2]
[408312087,1773390636789,-500.0,0.00019999,2]
[408312088,1773390636799,-500.0,0.00019999,2]
[408312089,1773390636809,-500.0,0.00019999,2]
[408312090,1773390636818,-500.0,0.00019999,2]
[408312091,1773390636829,-500.0,0.00019999,2]
[408312092,1773390636838,-500.0,0.00019999,2]
[408312093,1773390636847,-500.0,0.00019999,2]
[408312094,1773390636857,-500.0,0.00019999,2]
[408312095,1773390637013,-500.0,0.00019999,2]
[408312096,1773390637041,-509.15207096,0.00019999,2]
[408312097,1773390637054,-157.33716642,0.00019999,2]
[408312098,1773390637063,-500.0,0.00019999,2]
[408312099,1773390637072,-352.3778562,0.00019999,2]
[408312100,1773390637090,-268.61491126,0.00019999,2]
[408312101,1773390637099,-500.0,0.00019999,2]
[408312102,1773390637108,-370.19358929,0.00019999,2]
[408312103,1773390637118,-199.5671501,0.00019999,2]
[408312104,1773390637127,-1006.0,0.0002,2]
[408312105,1773390637137,-1062.0,0.0002,2]
[408312106,1773390637147,-221.43426028,0.0002,7]
[408312107,1773390637156,-274253.62585957,0.0002,2]
[408312108,1773390637166,-45628.40575783,0.0002,2]
[408312109,1773390637175,-496.43357262,0.0002,2]
[408312110,1773390637185,-1476.14960009,0.0002,5]
[408312111,1773390637195,-1071509.73632025,0.0002,2]
[408312112,1773390637321,-20557.56422424,0.0002,2]
[408312121,1773390638071,-718.58190257,0.000199,2]
[408312122,1773390638082,-315.0,0.000199,2]
[408312123,1773390638272,-1887.29833814,0.000199,2]
[408312124,1773390638282,-1451.59050199,0.000199,2]
[408312125,1773390638291,-68309.61341477,0.0002,2]
[408312126,1773390638302,-3877.65,0.0002,2]
[408312127,1773390638313,-374.72269329,0.0002,2]
[408312128,1773390638324,-1127.25454616,0.0002,2]
[408312129,1773390638335,-412.86168489,0.0002,2]
[408312130,1773390638346,-1406.94399623,0.0002,2]
[408312131,1773390638357,-10731.00000002,0.0002,2]
[408312158,1773390640756,-1050.44157549,0.000196,2]
[408312159,1773390640768,-1109.81815924,0.000196,2]
[408312160,1773390640778,-3330478.11944673,0.0002,2]
[408312161,1773390640790,-28649.41142344,0.0002,2]
[408312202,1773390643179,-1143.06587194,0.000196,2]
[408312203,1773390643188,-1025.29197105,0.000196,2]
[408312204,1773390643198,-54895.16688776,0.0002,2]
[408312205,1773390643207,-3950.0,0.0002,2]
[408312206,1773390643216,-132724.31091987,0.0002,2]
[408312207,1773390643226,-2877.55906388,0.0002,2]
[408312208,1773390643235,-12987.71636731,0.0002,2]
[408312209,1773390643246,-234254.21074491,0.0002,2]
[408312210,1773390643258,-15719.87903649,0.0002,2]
[408312211,1773390646021,-1149.70681174,0.000196,2]
[408312212,1773390646031,-1141.3898946,0.000196,2]
[408312213,1773390646041,-9157.57821906,0.0002,2]
[408312219,1773390884218,500.0,0.0003287,120]
[408312220,1773390897357,187.49,0.00030411,120]
[408312224,1773391073343,505.29,0.00025343,120]
[408312225,1773391073549,505.29,0.00027647,120]
[408312231,1773391438743,500.0,0.00032877,120]
[408312234,1773391470301,416.83,0.00032877,120]
[408312246,1773391535876,164.0,0.000328,120]
[408312247,1773391546304,164.0,0.000328,120]
[408312257,1773391809479,311.96,0.00032877,120]
[408312261,1773391832100,-249.84458592,0.00016579,2]
[408312262,1773391832110,-195.0,0.00016588,2]
[408312263,1773391832122,-500.0,0.00016588,2]
[408312264,1773391832132,-195.0,0.00016597,2]
[408312265,1773391832141,-2500.0,0.00016614,2]
[408312266,1773391832152,-197.77320952,0.00016615,2]
[408312267,1773391832162,-507.43194019,0.00016641,2]
[408312268,1773391832177,-692.56805981,0.00016641,2]
[408312269,1773391832186,-1200.0,0.00016641,2]
[408312270,1773391832196,-300.0,0.00016641,2]
[408312271,1773391832205,-300.0,0.00016641,2]
[408312272,1773391832215,-2500.0,0.00016642,2]
[408312273,1773391832225,-2500.0,0.00016642,2]
[408312274,1773391832235,-2500.0,0.00016642,2]
[408312275,1773391832244,-300.0,0.00016705,2]
[408312276,1773391832254,-166.64,0.00016712,2]
[408312277,1773391832263,-290.22950635,0.000168,7]
[408312278,1773391837642,-129.03049365,0.000168,7]
[408312279,1773391837652,-1910.49157789,0.00017427,2]
[408312280,1773391837664,-89.50842211,0.00017427,2]
[408312281,1773391837674,-674.2477392,0.00017475,2]
[408312282,1773391837683,-340.0,0.00018078,2]
[408312283,1773391837693,-14.02755869,0.00018197,2]
[408312284,1773391837704,-135.97244131,0.00018197,2]
[408312285,1773391837714,-160.00765679,0.00018237,2]
[408312286,1773391837725,-2339.99234321,0.00018237,2]
[408312287,1773391837735,-195.0,0.00018237,2]
[408312288,1773391837745,-95.51768881,0.00018237,2]
[408312289,1773391837758,-221.18240858,0.00018237,2]
[408312290,1773391837768,-203.8379162,0.00018237,2]
[408312291,1773391837782,-195.0,0.00018237,2]
[408312292,1773391837792,-500.0,0.00018237,2]
[408312293,1773391837802,-552.7977175,0.00018237,2]
[408312294,1773391837814,-280.72,0.00018237,2]
[408312295,1773391837826,-2430.2640317,0.00018237,2]
[408312296,1773391837836,-300.0,0.00018251,2]
[408312297,1773391837847,-159.6072426,0.00018273,2]
[408312298,1773391837859,-1520.3927574,0.00018273,2]
[408312299,1773391837869,-250.0,0.00018314,2]
[408312300,1773391837879,-151.0,0.00018356,2]
[408312301,1773391837888,-150.98,0.0001836,2]
[408312302,1773391837898,-184.04,0.00018384,2]
[408312303,1773391837908,-505.29,0.00018432,2]
[408312304,1773391837917,-634.08538741,0.00018483,2]
[408312305,1773391837927,-3436.31265765,0.00018629,2]
[408312306,1773391837939,-71.68734235,0.00018629,2]
[408312307,1773391837948,-1343.0,0.00018629,2]
[408312308,1773391837958,-1043.0,0.00018629,2]
[408312310,1773391837968,-1284.974,0.00018629,2]
[408312311,1773391837978,-3753.0,0.00018629,2]
[408312312,1773391837990,-2463.0,0.00018629,2]
[408312313,1773391838000,-1999.0,0.0001863,2]
[408312314,1773391838010,-168.0,0.00018955,2]
[408312316,1773391838019,-500.0,0.00018999,2]
[408312319,1773391838029,-1628.00897482,0.00018999,2]
[408312321,1773391838038,-318.20247461,0.00018999,2]
[408312323,1773391838048,-151.0,0.00018999,2]
[408312325,1773391838057,-500.0,0.00019054,2]
[408312327,1773391838067,-151.0,0.00019054,2]
[408312328,1773391838076,-168.0,0.00019086,2]
[408312329,1773391838091,-500.0,0.00019109,2]
[408312330,1773391838100,-151.0,0.00019109,2]
[408312331,1773391838111,-500.0,0.00019164,2]
[408312332,1773391838120,-151.0,0.00019164,2]
[408312333,1773391838131,-8420.1693,0.00019174,2]
[408312334,1773391838140,-150.0,0.00019178,2]
[408312335,1773391838149,-500.0,0.00019178,2]
[408312336,1773391838160,-150.0,0.00019178,2]
[408312337,1773391838169,-500.0,0.00019178,2]
[408312338,1773391838179,-150.0,0.00019178,2]
[408312339,1773391838188,-500.0,0.00019219,2]
[408312340,1773391838198,-151.0,0.00019219,2]
[408312341,1773391838208,-152.33368801,0.00019233,2]
[408312342,1773391838217,-500.0,0.00019233,2]
[408312343,1773391838227,-252.39007234,0.00019233,2]
[408312344,1773391838236,-500.0,0.00019233,2]
[408312345,1773391838246,-150.0,0.00019233,2]
[408312346,1773391838255,-168.0,0.00019264,2]
[408312347,1773391838265,-500.0,0.00019274,2]
[408312348,1773391838275,-151.0,0.00019274,2]
[408312349,1773391838285,-257.72101256,0.00019288,2]
[408312350,1773391838294,-237.03813108,0.00019288,2]
[408312351,1773391838304,-150.0,0.00019288,2]
[408312352,1773391838313,-150.0,0.00019326,2]
[408312353,1773391838323,-150.0,0.00019326,2]
[408312354,1773391838333,-150.0,0.00019326,2]
[408312355,1773391838343,-500.0,0.00019329,2]
[408312356,1773391838352,-151.0,0.00019329,2]
[408312357,1773391838363,-9999.99,0.00019339,2]
[408312358,1773391838372,-8288.36,0.00019339,2]
[408312359,1773391838382,-8307.54,0.00019339,2]
[408312360,1773391838401,-328.94,0.00019339,2]
[408312361,1773391838411,-150.99,0.00019339,2]
[408312362,1773391838422,-7951.96,0.00019339,2]
[408312363,1773391838432,-150.0,0.00019342,2]
[408312364,1773391838442,-202.59725118,0.00019381,2]
[408312365,1773391838452,-150.0,0.00019381,2]
[408312366,1773391838462,-500.0,0.00019384,2]
[408312367,1773391838471,-151.0,0.00019384,2]
[408312368,1773391838481,-150.0,0.00019397,2]
[408312369,1773391838491,-168.0,0.00019405,2]
[408312370,1773391838501,-211.946409,0.00019436,2]
[408312371,1773391838510,-500.0,0.00019439,2]
[408312372,1773391838520,-151.0,0.00019439,2]
[408312373,1773391838529,-250.0,0.00019452,2]
[408312374,1773391838539,-168.0,0.00019474,2]
[408312375,1773391838550,-168.0,0.0001949,2]
[408312376,1773391838559,-600.2919257,0.00019494,2]
[408312377,1773391838568,-151.0,0.00019494,2]
[408312378,1773391838578,-233.01634647,0.00019549,2]
[408312379,1773391838587,-1804.66095518,0.00019599,2]
[408312380,1773391838597,-1122.92352927,0.000196,2]
[408312381,1773391838606,-1122.28606387,0.000196,2]
[408312382,1773391838615,-1147.35788235,0.000196,2]
[408312383,1773391838625,-1016.76454673,0.000196,2]
[408312384,1773391838634,-1083.66794933,0.000196,2]
[408312385,1773391838644,-1113.71695037,0.000196,2]
[408312386,1773391838653,-1047.48395536,0.000196,2]
[408312387,1773391838663,-1060.15795051,0.000196,2]
[408312388,1773391838672,-1044.54609196,0.000196,2]
[408312389,1773391838681,-1014.44888347,0.000196,2]
[408312390,1773391838691,-1099.38334443,0.000196,2]
[408312391,1773391838701,-1110.38791554,0.000196,2]
[408312392,1773391838711,-1062.18535684,0.000196,2]
[408312394,1773391838720,-1002.97588247,0.000196,2]
[408312396,1773391838730,-1082.52397601,0.000196,2]
[408312398,1773391838739,-1083.72661948,0.000196,2]
[408312400,1773391838748,-1121.2011611,0.000196,2]
[408312402,1773391838758,-1042.285571,0.000196,2]
[408312404,1773391838767,-1025.39885935,0.000196,2]
[408312407,1773391838780,-1103.50216934,0.000196,2]
[408312409,1773391838790,-1081.98935827,0.000196,2]
[408312410,1773391838800,-1034.50966396,0.000196,2]
[408312411,1773391838809,-1145.39790641,0.000196,2]
[408312412,1773391838819,-556.07574725,0.000196,2]
[408312413,1773391838834,-513.77751652,0.000196,2]
[408312414,1773391838844,-1100.79882814,0.000196,2]
[408312415,1773391838854,-1377.51926191,0.000196,2]
[408312416,1773391838866,-93.99061303,0.000196,2]
[408312417,1773391838876,-164.0,0.000196,2]
[408312418,1773391838886,-180.95414296,0.000196,2]
[408312419,1773391838895,-162.46382434,0.00019602,2]
[408312420,1773391838907,-5.53617566,0.00019602,2]
[408312421,1773391838917,-1701.17616181,0.00019606,2]
[408312422,1773391838929,-298.82383819,0.00019606,2]
[408312423,1773391838939,-150.0,0.00019669,2]
[408312424,1773391838949,-832.91539973,0.000197,2]
[408312425,1773391838961,-1303.7819742,0.000197,2]
[408312426,1773391838970,-464.20997652,0.00019711,2]
[408312427,1773391838982,-485.05002348,0.00019711,2]
[408312428,1773391838991,-1186.57694304,0.000198,2]
[408312429,1773391839001,-1901.80183348,0.000198,2]
[408312430,1773391839013,-598.19816652,0.000198,2]
[408312431,1773391839023,-1186.57694299,0.00019811,2]
[408312432,1773391839033,-1186.57694299,0.00019822,2]
[408312433,1773391839043,-1186.57694299,0.00019833,2]
[408312434,1773391839053,-1186.57694299,0.00019844,2]
[408312435,1773391839063,-1186.57694299,0.00019856,2]
[408312436,1773391839073,-168.0,0.00019864,2]
[408312437,1773391839085,-1186.57694299,0.00019867,2]
[408312438,1773391839095,-1186.57694299,0.00019878,2]
[408312439,1773391839104,-1186.57694299,0.00019889,2]
[408312440,1773391839114,-150.98,0.0001989,2]
[408312441,1773391839125,-10740.03019673,0.000199,2]
[408312442,1773391839138,-10945.77537389,0.000199,2]
[408312443,1773391839150,-7083.26161694,0.000199,2]
[408312444,1773391839162,-4585.64725591,0.000199,2]
[408312445,1773391839177,-1300.6176767,0.000199,2]
[408312449,1773391840406,-12970.41817983,0.000199,2]
[408312450,1773391840416,-1000.0,0.000199,2]
[408312451,1773391840425,-5000.0,0.000199,2]
[408312452,1773391840436,-1186.57694299,0.000199,2]
[408312453,1773391840445,-4393.85430828,0.000199,2]
[408312454,1773391840455,-1328.96,0.00019902,2]
[408312455,1773391840465,-265.29,0.00019902,2]
[408312456,1773391840475,-168.0,0.0001992,2]
[408312457,1773391840486,-168.0,0.00019959,2]
[408312458,1773391840495,-500.0,0.00019973,2]
[408312459,1773391840505,-500.0,0.00019973,2]
[408312460,1773391840515,-163.3177747,0.00019973,2]
[408312461,1773391840525,-500.0,0.00019973,2]
[408312462,1773391840535,-300.0,0.00019999,2]
[408312463,1773391840544,-258.67259579,0.00019999,2]
[408312464,1773391840555,-246.66449934,0.00019999,2]
[408312465,1773391840565,-500.0,0.00019999,2]
[408312466,1773391840574,-500.0,0.00019999,2]
[408312467,1773391840583,-500.0,0.00019999,2]
[408312468,1773391840593,-500.0,0.00019999,2]
[408312469,1773391840602,-500.0,0.00019999,2]
[408312470,1773391840611,-500.0,0.00019999,2]
[408312471,1773391840621,-500.0,0.00019999,2]
[408312472,1773391840631,-500.0,0.00019999,2]
[408312473,1773391840640,-465.78648029,0.00019999,2]
[408312474,1773391840650,-500.0,0.00019999,2]
[408312475,1773391840660,-500.0,0.00019999,2]
[408312476,1773391840669,-500.0,0.00019999,2]
[408312477,1773391840679,-188.03043788,0.00019999,2]
[408312478,1773391840688,-609.13551251,0.00019999,2]
[408312479,1773391840698,-649.0,0.0002,2]
[408312480,1773391840707,-836438.35297046,0.0002,2]
[408312481,1773391840717,-7454.7750916,0.0002,14]
[408312482,1773391840727,-204.0,0.0002,10]
[408312483,1773391840737,-384490.81281103,0.0002,2]
[408312484,1773391840747,-1166963.79842552,0.0002,2]
[408312485,1773391840756,-421714.63342782,0.0002,2]
[408312486,1773391840767,-200.0,0.0002,2]
[408312487,1773391840777,-200.0,0.0002,2]
[408312488,1773391840787,-188.0,0.0002,2]
[408312489,1773391840797,-197811.31902451,0.0002,2]
[408312490,1773391840808,-4814.09966962,0.0002,3]
[408312491,1773391840818,-273636.62129456,0.0002,2]
[408312492,1773391840831,-1439.7,0.0002,2]
[408312493,1773391840843,-1051.00000002,0.0002,2]
[408312494,1773391840933,-615.03738241,0.0002,2]
[408312497,1773391843250,-36707.40621893,0.0002,2]
[408312498,1773391843262,-39352.89543078,0.0002,2]
[408312499,1773391843271,-394011.42930685,0.0002,2]
[408312500,1773391843283,-49651.1667809,0.0002,2]
[408312501,1773391843292,-4099.16729729,0.0002,2]
[408312502,1773391843302,-162.0,0.0002,2]
[408312503,1773391843311,-70284.76371787,0.0002,2]
[408312519,1773391846410,-234236.717946,0.0002,2]
[408312526,1773391864139,10000.0,0.00032877,120]
[408312528,1773391928547,10000.0,0.00032877,120]
[408312529,1773391943366,10000.0,0.00032877,120]
[408312530,1773391952974,10000.0,0.00032877,120]
[408312531,1773391962885,10000.0,0.00032877,120]
[408312540,1773391976138,179.61,9.415e-05,2]
[408312541,1773391976541,179.61,9.911e-05,2]
[408312542,1773391976743,179.61,0.00010406,2]
[408312543,1773391976938,179.61,0.00010902,2]
[408312544,1773391977137,179.61,0.00011397,2]
[408312545,1773391977336,179.61,0.00011893,2]
[408312546,1773391977535,179.61,0.00012388,2]
[408312547,1773391977741,179.61,0.00012884,2]
[408312548,1773391977941,179.61,0.00013379,2]
[408312549,1773391978148,179.61,0.00013875,2]
[408312550,1773391978315,10000.0,0.00032877,120]
[408312551,1773391996027,10000.0,0.00032877,120]
[408312552,1773392005691,10000.0,0.00032877,120]
[408312553,1773392016930,10000.0,0.00032877,120]
[408312554,1773392028095,10000.0,0.00032877,120]
[408312555,1773392038409,10000.0,0.00032877,120]
[408312556,1773392047733,10000.0,0.00032877,120]
[408312557,1773392059974,10000.0,0.00032877,120]
[408312558,1773392069186,10000.0,0.00032877,120]
[408312559,1773392079470,10000.0,0.00032877,120]
[408312560,1773392088642,10000.0,0.00032877,120]
[408312570,1773392313670,444.47345226,0.0003287,120]
[408312588,1773392556775,834.43154019,0.0003287,120]
[408312589,1773392558626,1641.98701459,0.0003,120]
[408312673,1773393031253,-1303.7819742,0.000142,2]
[408312675,1773393031263,-128.19595406,0.00014269,2]
[408312677,1773393031274,-130.99075337,0.00014269,2]
[408312679,1773393031285,-268.0,0.00014269,2]
[408312680,1773393031295,-162.11380652,0.00014319,2]
[408312681,1773393031305,-1200.0,0.00014368,2]
[408312682,1773393031313,-300.0,0.00014369,2]
[408312683,1773393031322,-300.0,0.00014369,2]
[408312684,1773393031331,-188.67257488,0.00014369,2]
[408312685,1773393031340,-179.61,0.0001437,2]
[408312686,1773393031348,-500.0,0.0001437,2]
[408312687,1773393031357,-500.0,0.0001437,2]
[408312688,1773393031366,-500.0,0.0001437,2]
[408312689,1773393031375,-500.0,0.0001437,2]
[408312690,1773393031384,-500.0,0.0001437,2]
[408312691,1773393031393,-500.0,0.0001437,2]
[408312692,1773393031402,-166.66,0.00014393,2]
[408312693,1773393031415,-381.495426,0.00014593,7]
[408312694,1773393031424,-166.66,0.00014696,2]
[408312695,1773393031433,-179.61,0.00014866,2]
[408312696,1773393031442,-1642.88,0.00014878,2]
[408312697,1773393031453,-166.66,0.00014999,2]
[408312698,1773393031463,-250.0,0.00015,2]
[408312699,1773393031472,-532.86871527,0.00015,14]
[408312700,1773393031483,-412.003929,0.00015016,7]
[408312701,1773393031492,-166.66,0.00015302,2]
[408312702,1773393031501,-179.61,0.00015361,2]
[408312703,1773393031510,-166.66,0.00015605,2]
[408312704,1773393031519,-250.0,0.00015696,2]
[408312705,1773393031528,-300.0,0.00015696,2]
[408312706,1773393031537,-250.0,0.00015696,2]
[408312707,1773393031547,-1680.0,0.00015805,2]
[408312708,1773393031556,-300.0,0.00015806,2]
[408312709,1773393031565,-7779.42653039,0.0001584,2]
[408312710,1773393031573,-179.61,0.00015857,2]
[408312711,1773393031583,-166.66,0.00015908,2]
[408312712,1773393031592,-545020.964,0.000161,2]
[408312713,1773393031600,-179.61,0.00016352,2]
[408312714,1773393031609,-377.33,0.000168,7]
[408312715,1773393031618,-179.61,0.00016848,2]
[408312716,1773393031627,-300.0,0.00017,2]
[408312717,1773393031636,-550.0,0.00017,2]
[408312718,1773393031645,-164.66,0.00017103,2]
[408312719,1773393031654,-179.61,0.00017344,2]
[408312720,1773393031664,-37581.49,0.00017346,2]
[408312721,1773393031673,-2351.0,0.00017385,2]
[408312722,1773393031682,-2000.0,0.00017427,2]
[408312723,1773393031691,-150.0,0.00017427,2]
[408312724,1773393031700,-500.0,0.00017432,2]
[408312725,1773393031709,-200.0,0.00017545,2]
[408312726,1773393031718,-3187.40850647,0.0001762,2]
[408312727,1773393031727,-640.3340267,0.00017682,2]
[408312728,1773393031735,-858.95,0.00017682,2]
[408312729,1773393031744,-179.61,0.00017839,2]
[408312730,1773393031753,-17766.7711737,0.00018,2]
[408312731,1773393031762,-308.94322639,0.00018,2]
[408312732,1773393031771,-1003.45460242,0.00018,2]
[408312733,1773393031780,-748.94,0.00018013,2]
[408312734,1773393031789,-166.66,0.00018141,2]
[408312735,1773393031798,-4355.1303907,0.00018142,2]
[408312736,1773393031807,-179.61,0.00018335,2]
[408312737,1773393031815,-250.0,0.00018423,2]
[408312738,1773393031824,-1024.72861785,0.00018475,2]
[408312739,1773393031833,-620.0,0.00018629,2]
[408312740,1773393031842,-163.592,0.00018629,2]
[408312741,1773393031851,-1343.0,0.00018629,2]
[408312742,1773393031860,-3753.0,0.00018629,2]
[408312743,1773393031869,-2463.0,0.00018629,2]
[408312744,1773393031878,-150.0,0.00018641,2]
[408312745,1773393031886,-6338.82437578,0.00018722,2]
[408312746,1773393031895,-166.66,0.0001874,2]
[408312747,1773393031904,-150.0,0.00018826,2]
[408312748,1773393031913,-179.61,0.0001883,2]
[408312749,1773393031921,-748.94,0.00018914,2]
[408312750,1773393031931,-3292.0,0.00019124,2]
[408312751,1773393031939,-1462.61,0.00019167,2]
[408312752,1773393031948,-150.0,0.00019178,2]
[408312753,1773393031957,-150.0,0.00019178,2]
[408312754,1773393031967,-150.0,0.00019178,2]
[408312755,1773393031976,-150.0,0.00019178,2]
[408312756,1773393031985,-150.0,0.00019178,2]
[408312757,1773393031994,-500.0,0.00019178,2]
[408312758,1773393032003,-150.0,0.00019178,2]
[408312759,1773393032012,-150.0,0.00019178,2]
[408312760,1773393032021,-150.0,0.00019178,2]
[408312761,1773393032030,-150.0,0.00019178,2]
[408312762,1773393032041,-150.0,0.00019178,2]
[408312763,1773393032050,-243.3508448,0.00019178,2]
[408312764,1773393032059,-150.0,0.00019178,2]
[408312765,1773393032069,-150.0,0.00019178,2]
[408312766,1773393032078,-489.29,0.00019227,2]
[408312767,1773393032088,-150.0,0.00019233,2]
[408312768,1773393032097,-150.0,0.00019233,2]
[408312769,1773393032106,-150.0,0.00019233,2]
[408312770,1773393032115,-150.0,0.00019233,2]
[408312771,1773393032124,-150.0,0.00019233,2]
[408312772,1773393032133,-542.0,0.00019233,2]
[408312773,1773393032142,-150.0,0.00019233,2]
[408312774,1773393032151,-150.0,0.00019233,2]
[408312775,1773393032160,-150.0,0.00019233,2]
[408312776,1773393032170,-150.0,0.00019233,2]
[408312777,1773393032179,-210.42168767,0.00019233,2]
[408312778,1773393032187,-150.0,0.00019233,2]
[408312779,1773393032197,-200.0,0.00019288,2]
[408312780,1773393032206,-150.0,0.00019288,2]
[408312781,1773393032215,-211.35141759,0.00019288,2]
[408312782,1773393032224,-200.0,0.00019288,2]
[408312783,1773393032234,-200.0,0.00019288,2]
[408312784,1773393032243,-212.07061188,0.00019288,2]
[408312785,1773393032252,-210.08843047,0.00019288,2]
[408312786,1773393032260,-200.0,0.00019288,2]
[408312787,1773393032270,-200.0,0.00019288,2]
[408312788,1773393032279,-217.32942048,0.00019288,2]
[408312789,1773393032289,-166.66,0.00019339,2]
[408312790,1773393032299,-150.0,0.00019342,2]
[408312791,1773393032308,-150.0,0.00019397,2]
[408312792,1773393032317,-250.0,0.00019452,2]
[408312793,1773393032327,-150.0,0.00019507,2]
[408312794,1773393032336,-150.0,0.00019507,2]
[408312795,1773393032345,-150.0,0.00019562,2]
[408312796,1773393032355,-150.0,0.00019562,2]
[408312797,1773393032365,-180.95414297,0.000196,2]
[408312798,1773393032374,-200.0,0.00019617,2]
[408312799,1773393032383,-200.0,0.00019617,2]
[408312800,1773393032392,-1462.61,0.00019646,2]
[408312801,1773393032401,-150.34162832,0.00019699,2]
[408312802,1773393032413,-150.0,0.00019699,2]
[408312803,1773393032422,-1785.0,0.000197,2]
[408312804,1773393032431,-168.0,0.00019716,2]
[408312805,1773393032440,-150.0,0.00019754,2]
[408312806,1773393032450,-1000.0,0.000198,2]
[408312807,1773393032460,-2497.3535,0.000198,2]
[408312808,1773393032470,-200.0,0.00019809,2]
[408312809,1773393032480,-748.94,0.00019814,2]
[408312810,1773393032493,-168.0,0.00019818,2]
[408312811,1773393032502,-234.5008,0.00019899,2]
[408312812,1773393032511,-5000.0,0.000199,2]
[408312813,1773393032520,-8787.70861656,0.000199,2]
[408312814,1773393032530,-177.33230872,0.000199,2]
[408312815,1773393032538,-2369.86085818,0.000199,2]
[408312816,1773393032547,-1497.2365201,0.000199,2]
[408312817,1773393032556,-166.66,0.00019937,2]
[408312818,1773393032565,-2393.0,0.00019973,2]
[408312819,1773393032574,-163.3177747,0.00019973,2]
[408312820,1773393032583,-500.0,0.00019973,2]
[408312821,1773393032592,-500.0,0.00019973,2]
[408312822,1773393032601,-3692.0,0.00019973,2]